bitfinex-derivatives/quotes_ETHF0:USTF0_20250309
["timestamp","ask_amount","ask_price","bid_price","bid_amount"]
[1741529230454,0.94714,2112.0,2111.6,0.94728]
[1741529230650,0.94705,2112.2,2111.9,3.2078]
[1741529231053,0.00710463,2112.3,2111.9,3.2078]
[1741529231248,0.00710463,2112.3,2112.0,0.94711]
[1741529231451,0.00710463,2112.3,2111.9,3.2078]
[1741529231857,0.00710463,2112.3,2112.1,0.94708]
[1741529232055,0.00710463,2112.3,2111.9,3.2078]
[1741529232258,0.95412463,2112.3,2111.9,4.15495]
[1741529232458,0.00710463,2112.3,2111.9,3.2078]
[1741529233364,0.00710463,2112.3,2112.2,0.94705]
[1741529233749,0.00710463,2112.3,2112.2,4.15485]
[1741529233954,0.94681,2112.8,2112.2,3.2078]
[1741529234151,16.2567315,2113.0,2112.3,3.2078]
[1741529234353,16.2567315,2113.0,2112.6,3.2078]
[1741529234563,16.2567315,2113.0,2112.9,4.15453]
[1741529234760,16.22831298,2113.0,2112.9,44.95453]
[1741529234960,8.33261298,2113.0,2112.9,44.95453]
[1741529235160,0.43661298,2113.0,2112.9,44.95453]
[1741529235351,0.00710463,2113.2,2113.1,0.94664]
[1741529236156,12.4032451,2113.4,2113.1,4.4736]
[1741529236356,14.450428,2113.6,2113.5,0.94646]
[1741529236660,13.438278,2113.6,2113.5,0.94646]
[1741529236864,3.2078,2114.5,2113.9,0.94627]
[1741529237061,3.2078,2114.5,2113.6,3.015]
[1741529237265,3.2078,2114.5,2113.9,0.94626]
[1741529237452,0.95321463,2114.3,2113.9,0.94624]
[1741529237657,0.00710463,2114.3,2113.8,0.00710463]
[1741529237852,0.94628,2114.0,2113.8,0.00710463]
[1741529238260,0.94628,2113.9,2113.8,0.00710463]
[1741529238460,3.2078,2114.2,2113.8,0.00710463]
[1741529239058,0.94628,2113.9,2113.8,0.00710463]
[1741529239255,0.94619,2114.1,2113.8,0.00710463]
[1741529239461,0.94628,2113.9,2113.8,0.00710463]
[1741529240059,4.15408,2113.9,2113.8,0.00710463]
[1741529240566,7.2078,2113.9,2113.1,6.2018]
[1741529240858,2.36563,2114.0,2113.1,6.2018]
[1741529240859,4.15424,2113.6,2113.2,0.94657]
[1741529241271,0.94649,2113.5,2113.1,7.14842]
[1741529241662,0.94649,2113.5,2113.1,7.15552463]
[1741529241970,3.2078,2113.6,2113.1,6.20890463]
[1741529242170,0.94646,2113.5,2113.1,6.20890463]
[1741529242371,3.2078,2113.6,2113.1,6.20890463]
[1741529242571,3.2078,2113.6,2113.1,3.21490463]
[1741529243564,9.392,2114.2,2113.1,3.21490463]
[1741529243759,9.392,2114.2,2113.2,2.967]
[1741529243760,3.2078,2113.9,2113.2,2.967]
[1741529244064,0.9462,2114.1,2113.7,0.94635]
[1741529244263,9.392,2114.2,2113.6,0.94639]
[1741529244264,0.94624,2114.0,2113.6,0.94639]
[1741529244469,9.392,2114.2,2113.5,3.2078]
[1741529244767,9.392,2114.2,2113.6,0.94639]
[1741529245070,0.94619,2114.1,2113.6,0.94639]
[1741529245573,0.94619,2114.1,2113.2,9.5072]
[1741529245574,9.392,2114.2,2113.2,12.715]
[1741529245771,0.94631,2113.9,2113.6,3.2078]
[1741529246269,0.94625,2114.0,2113.6,4.1542]
[1741529246467,0.94628,2114.0,2113.6,3.2078]
[1741529246663,9.392,2114.2,2113.6,3.2078]
[1741529246868,7.13036,2114.2,2113.8,0.94631]
[1741529247264,6.1842,2114.2,2113.6,3.2078]
[1741529247465,9.392,2114.2,2113.6,3.2078]
[1741529248170,0.94624,2114.1,2113.8,0.94632]
[1741529248368,0.94629,2113.9,2113.6,4.1542]
[1741529248671,9.392,2114.2,2113.6,3.2078]
[1741529249264,0.94631,2113.9,2113.6,4.15419]
[1741529249457,9.392,2114.2,2113.6,3.2078]
[1741529249863,9.392,2114.2,2113.2,12.678]
[1741529250075,9.392,2114.2,2113.5,4.15423]
[1741529250265,9.392,2114.2,2113.6,0.9464]
[1741529250572,0.94627,2114.0,2113.2,12.678]
[1741529250765,0.9463,2113.9,2113.6,0.94641]
[1741529250960,0.94627,2114.0,2113.2,12.678]
[1741529251168,0.94629,2113.9,2113.6,0.9464]
[1741529251367,0.94619,2114.1,2113.2,12.678]
[1741529251576,10.33818,2114.2,2113.5,3.2078]
[1741529251767,0.94628,2114.0,2113.6,0.94639]
[1741529251967,0.94629,2113.9,2113.6,0.94639]
[1741529252173,0.94639,2113.7,2113.5,3.2078]
[1741529252475,3.2078,2113.9,2113.5,3.2078]
[1741529252670,0.94639,2113.7,2113.5,3.2078]
[1741529252871,3.2078,2113.9,2113.5,3.2078]
[1741529253374,3.2078,2113.9,2113.6,0.94642]
[1741529253569,3.2078,2113.9,2113.8,0.94633]
[1741529253766,0.94636,2113.8,2113.5,3.2078]
[1741529254166,0.94637,2113.8,2113.5,3.2078]
[1741529254373,0.94638,2113.7,2113.5,3.2078]
[1741529254672,0.94642,2113.6,2113.5,3.2078]
[1741529255175,0.94649,2113.5,2113.2,0.94659]
[1741529255374,0.94649,2113.5,2113.2,0.94655]
[1741529255670,3.2078,2113.6,2113.1,2.99210463]
[1741529255969,3.2078,2113.6,2113.5,0.94646]
[1741529256275,4.15423,2113.6,2113.1,2.99210463]
[1741529256474,3.2078,2113.6,2113.4,0.94649]
[1741529256675,4.15423,2113.6,2113.3,0.94652]
[1741529257169,3.2078,2113.6,2113.4,0.9465]
[1741529257363,0.94643,2113.6,2113.1,2.99210463]
[1741529257567,3.2078,2113.9,2113.3,3.2078]
[1741529257779,6.1842,2114.2,2113.9,0.94624]
[1741529257963,7.13038,2114.2,2113.9,0.94624]
[1741529258167,7.13038,2114.2,2113.6,0.94641]
[1741529258168,3.2078,2114.1,2113.6,0.94641]
[1741529258366,3.2078,2114.1,2113.4,9.3272]
[1741529258567,10.81790463,2114.3,2113.4,9.3272]
[1741529258568,0.00710463,2114.3,2114.2,0.94615]
[1741529259075,0.00710463,2114.3,2114.0,0.94621]
[1741529259271,0.95321463,2114.3,2113.9,2.861]
[1741529259477,0.95321463,2114.3,2113.9,3.80726]
[1741529259778,0.95322463,2114.3,2113.9,7.01505]
[1741529259980,0.00710463,2114.3,2114.2,0.94615]
[1741529260174,0.00710463,2114.3,2114.1,0.94617]
[1741529260371,0.00710463,2114.3,2114.0,0.94621]
[1741529260773,0.00710463,2114.3,2113.9,6.0688]
[1741529261070,0.94618,2114.2,2114.0,40.8]
[1741529261267,0.00710463,2114.3,2114.0,40.8]
[1741529261268,0.95324463,2114.3,2114.0,40.8]
[1741529261675,0.00710463,2114.3,2114.0,40.8]
[1741529261871,0.95321463,2114.3,2113.9,6.0688]
[1741529262077,0.00710463,2114.3,2113.9,3.2078]
[1741529262276,0.94623,2114.1,2113.9,3.2078]
[1741529262579,0.94623,2114.1,2113.5,2.837]
[1741529262580,3.2078,2114.1,2113.5,2.837]
[1741529262775,0.94634,2113.8,2113.5,3.78345]
[1741529262981,3.2078,2114.1,2113.5,2.837]
[1741529263679,0.94626,2114.0,2113.5,2.837]
[1741529264081,4.15402,2114.1,2113.5,2.837]
[1741529264283,3.2078,2114.1,2113.5,2.837]
[1741529264476,0.00710463,2114.3,2114.0,0.9462]
[1741529264676,0.95324463,2114.3,2113.7,3.2078]
[1741529264876,0.95324463,2114.3,2114.0,0.94624]
[1741529265077,0.00710463,2114.3,2113.7,3.2078]
[1741529265474,4.15403,2114.1,2113.7,4.15414]
[1741529265970,4.15403,2114.1,2113.8,0.94631]
[1741529266174,0.00710463,2114.3,2113.8,0.94631]
[1741529266374,0.00710463,2114.3,2113.7,3.2078]
[1741529266569,0.95322463,2114.3,2114.0,0.94622]
[1741529266775,0.00710463,2114.3,2114.0,0.94622]
[1741529266977,0.95322463,2114.3,2113.7,3.2078]
[1741529267479,0.95322463,2114.3,2114.0,0.94622]
[1741529267681,0.00710463,2114.3,2113.7,3.2078]
[1741529267870,0.00710463,2114.3,2114.0,0.94622]
[1741529268069,0.95321463,2114.3,2114.0,0.94622]
[1741529268478,0.95322463,2114.3,2114.0,0.94622]
[1741529268784,0.94616,2114.2,2113.9,0.94627]
[1741529268984,0.94623,2114.1,2113.7,4.15414]
[1741529269383,0.94625,2114.0,2113.7,4.15414]
[1741529269686,0.00710463,2114.3,2113.6,2.796]
[1741529269687,3.2078,2114.1,2113.6,2.796]
[1741529269876,3.2078,2114.1,2113.5,22.286]
[1741529270077,0.94638,2113.7,2113.5,19.301]
[1741529270283,4.15415,2113.8,2113.5,20.24744]
[1741529270483,0.94639,2113.7,2113.5,20.24746]
[1741529270675,0.94639,2113.7,2113.5,19.301]
[1741529270879,0.94642,2113.6,2113.5,19.301]
[1741529271075,0.94649,2113.5,2113.2,0.94656]
[1741529271380,3.2078,2113.8,2113.3,0.94654]
[1741529271589,3.2078,2113.8,2113.4,0.94651]
[1741529271775,0.94645,2113.6,2113.3,0.94653]
[1741529272181,0.9464,2113.7,2113.4,0.94646]
[1741529272383,0.94642,2113.6,2113.4,0.94646]
[1741529272584,0.94642,2113.6,2113.3,0.94653]
[1741529273387,3.2078,2113.8,2113.2,40.8]
[1741529273685,0.94652,2113.4,2113.2,40.8]
[1741529273886,0.94655,2113.3,2113.2,40.8]
[1741529274089,0.9466,2113.2,2113.1,0.00710463]
[1741529274675,4.1544,2113.2,2113.1,0.00710463]
[1741529274873,3.2078,2113.2,2113.1,0.00710463]
[1741529275078,3.2078,2113.6,2113.1,0.00710463]
[1741529275289,0.9466,2113.2,2113.1,0.00710463]
[1741529275684,3.2078,2113.3,2113.1,0.00710463]
[1741529275982,3.2078,2113.6,2113.4,0.94649]
[1741529276587,3.2078,2113.6,2113.5,40.8]
[1741529276787,4.15422,2113.6,2113.5,40.8]
[1741529276982,0.9466,2113.2,2113.1,0.00710463]
[1741529277684,3.2078,2113.6,2113.1,0.00710463]
[1741529278289,0.9466,2113.2,2113.1,0.00710463]
[1741529279097,0.94678,2112.8,2112.7,60.101]
[1741529279285,0.94675,2112.9,2112.7,60.101]
[1741529279485,3.2078,2113.1,2112.7,60.101]
[1741529279486,0.94678,2112.8,2112.7,60.101]
[1741529279686,0.94673,2113.0,2112.7,19.301]
[1741529279882,3.2078,2113.1,2113.0,0.94669]
[1741529280085,0.00710463,2113.1,2113.0,40.8]
[1741529280482,0.95374463,2113.1,2113.0,40.8]
[1741529280790,0.00710463,2113.1,2113.0,41.74669]
[1741529281287,0.95374463,2113.1,2113.0,40.8]
[1741529281487,0.00710463,2113.1,2113.0,41.74669]
[1741529282196,0.00710463,2113.1,2113.0,44.95449]
[1741529282694,0.9463,2113.9,2113.5,0.94643]
[1741529282882,3.2078,2114.3,2113.4,5.9958]
[1741529283090,3.2078,2114.3,2113.4,2.788]
[1741529283391,0.94636,2113.8,2113.4,3.73449]
[1741529283584,0.94636,2113.8,2113.4,2.788]
[1741529283792,0.00710463,2113.8,2113.5,3.2078]
[1741529283990,0.95345463,2113.8,2113.5,3.2078]
[1741529284191,0.95345463,2113.8,2113.5,4.15425]
[1741529284389,0.00710463,2113.8,2113.7,0.94637]
[1741529284694,0.00710463,2113.8,2113.5,3.2078]
[1741529284895,0.00710463,2113.8,2113.6,0.9464]
[1741529285091,0.00710463,2113.8,2113.7,0.94637]
[1741529286099,4.63e-06,2113.8,2113.7,0.94637]
[1741529286394,4.63e-06,2113.8,2113.7,4.94637]
[1741529286792,4.63e-06,2113.8,2113.7,0.94637]
[1741529287991,4.63e-06,2113.8,2113.4,2.79510463]
[1741529287992,4.63e-06,2113.8,2113.6,3.2078]
[1741529288689,4.63e-06,2113.8,2113.7,0.94637]
[1741529289194,4.63e-06,2113.8,2113.7,4.94637]
[1741529289700,4.63e-06,2113.8,2113.7,27.70697]
[1741529290391,4.63e-06,2113.8,2113.7,68.50697]
[1741529291100,4.63e-06,2113.8,2113.7,64.50697]
[1741529291300,4.63e-06,2113.8,2113.7,68.50697]
[1741529291800,3.2078,2114.6,2113.7,63.5606]
[1741529291997,3.2078,2114.6,2113.9,3.2078]
[1741529292294,3.2078,2114.6,2113.7,22.287]
[1741529292702,0.94606,2114.4,2113.7,22.287]
[1741529292997,0.00710463,2114.4,2113.9,3.2078]
[1741529293194,0.00710463,2114.4,2114.2,0.94612]
[1741529293395,0.00710463,2114.4,2113.9,2.787]
[1741529293595,0.94615,2114.2,2113.9,2.787]
[1741529294298,5.05880463,2114.4,2113.9,2.787]
[1741529294490,0.00710463,2114.4,2114.0,3.2078]
[1741529294695,0.00710463,2114.4,2114.0,4.15402]
[1741529294903,0.00710463,2114.4,2114.1,0.94619]
[1741529295097,0.00710463,2114.4,2114.0,3.2078]
[1741529295298,0.00710463,2114.4,2113.9,2.787]
[1741529295606,0.00710463,2114.4,2113.7,19.302]
[1741529295607,0.94624,2114.0,2113.7,22.089]
[1741529295799,0.94622,2114.1,2113.7,23.03537]
[1741529296202,6.00488463,2114.4,2114.0,0.94622]
[1741529296398,5.05880463,2114.4,2113.7,22.089]
[1741529296603,5.05880463,2114.4,2114.1,0.94619]
[1741529296798,5.05880463,2114.4,2113.9,4.15405]
[1741529297002,5.05880463,2114.4,2113.9,3.2078]
[1741529297606,5.05880463,2114.4,2114.1,0.94617]
[1741529298201,5.05880463,2114.4,2114.2,3.2078]
[1741529298202,0.00710463,2114.4,2114.2,3.2078]
[1741529298709,0.00710463,2114.4,2114.2,0.94614]
[1741529299110,0.95316463,2114.4,2114.1,2.787]
[1741529299411,0.9462,2114.1,2113.8,5.9948]
[1741529299613,3.2078,2114.3,2113.7,19.302]
[1741529299807,0.94633,2113.8,2113.7,19.302]
[1741529300009,0.94635,2113.8,2113.5,3.2078]
[1741529300313,0.94635,2113.8,2113.5,4.15425]
[1741529300507,0.94646,2113.6,2113.4,0.00710463]
[1741529300707,0.94646,2113.5,2113.4,0.00710463]
[1741529301106,0.94659,2113.3,2113.0,41.74667]
[1741529301308,0.94664,2113.2,2112.9,19.299]
[1741529301508,0.94673,2112.9,2112.8,14.47908034]
[1741529302616,0.94678,2112.8,2112.7,18.16979673]
[1741529303108,0.94678,2112.8,2112.6,0.00710463]
[1741529303506,0.94682,2112.7,2112.6,0.00710463]
[1741529303713,3.2078,2113.0,2112.6,0.00710463]
[1741529304009,0.94674,2112.9,2112.6,0.00710463]
[1741529304212,3.2078,2113.0,2112.6,0.00710463]
[1741529304417,3.2078,2113.0,2112.6,0.95394463]
[1741529304718,0.94673,2112.9,2112.6,0.00710463]
[1741529304909,3.2078,2113.0,2112.6,0.00710463]
[1741529305108,4.15453,2113.0,2112.6,0.00710463]
[1741529305310,0.94673,2113.0,2112.6,0.95396463]
[1741529305511,0.94669,2113.0,2112.6,0.95396463]
[1741529305816,6.47110463,2113.1,2112.6,0.00710463]
[1741529306113,0.94682,2112.7,2112.6,0.00710463]
[1741529306618,3.2078,2112.9,2112.6,0.00710463]
[1741529306819,0.94681,2112.8,2112.6,0.00710463]
[1741529307213,3.2078,2112.9,2112.6,0.00710463]
[1741529307414,0.94698,2112.4,2112.1,19.3]
[1741529307610,0.94702,2112.3,2112.1,19.3]
[1741529307911,3.2078,2112.6,2112.1,19.3]
[1741529308720,0.94691,2112.5,2112.1,19.30710463]
[1741529308910,3.2078,2112.6,2112.1,19.30710463]
[1741529309311,3.2078,2112.2,2112.1,0.00710463]
[1741529310012,3.2078,2112.2,2111.4,10.8725]
[1741529310415,4.15486,2112.2,2111.7,0.94726]
[1741529310613,3.2078,2112.2,2111.5,40.8]
[1741529310823,3.2078,2112.2,2111.9,0.94716]
[1741529311118,0.00710463,2112.3,2111.9,0.94716]
[1741529311413,0.00710463,2112.3,2112.2,0.94705]
[1741529311622,0.00710463,2112.3,2111.9,4.15494]
[1741529311812,0.00710463,2112.3,2112.0,0.94713]
[1741529312008,0.00710463,2112.3,2111.9,3.2078]
[1741529312315,3.2078,2112.2,2111.8,0.00710463]
[1741529312514,4.15487,2112.2,2111.8,0.00710463]
[1741529312708,0.94711,2112.1,2111.8,0.00710463]
[1741529312920,3.2078,2112.2,2111.8,0.00710463]
[1741529313319,3.2078,2111.9,2111.3,22.5128]
[1741529313623,3.2078,2111.9,2111.0,4.15537]
[1741529313821,0.94735,2111.6,2111.1,40.8]
[1741529314123,3.2078,2111.9,2111.5,0.94736]
[1741529314315,3.2078,2111.9,2111.3,0.94742]
[1741529314627,3.2078,2111.9,2111.5,0.00710463]
[1741529314817,4.15511,2111.6,2111.5,0.00710463]
[1741529315010,3.2078,2111.6,2110.7,6.2524]
[1741529315210,0.94745,2111.3,2110.9,0.94763]
[1741529315411,3.2078,2111.6,2110.9,40.8]
[1741529315624,0.94749,2111.3,2110.9,40.8]
[1741529316015,0.94749,2111.3,2110.7,6.2524]
[1741529316016,3.2078,2111.3,2110.7,6.2524]
[1741529316219,0.94756,2111.1,2110.9,0.0047364]
[1741529316610,0.00710463,2111.2,2110.9,0.0047364]
[1741529316817,0.95462463,2111.2,2110.9,0.0047364]
[1741529317018,0.00710463,2111.2,2110.9,0.0047364]
[1741529317219,0.00710463,2111.2,2111.1,0.94754]
[1741529317419,0.00710463,2111.2,2110.9,0.0047364]
[1741529317718,0.00710463,2111.2,2111.1,0.94754]
[1741529318522,3.2078,2112.0,2111.6,0.94729]
[1741529318827,3.2078,2112.3,2112.0,0.94711]
[1741529319123,3.2078,2112.3,2112.1,40.8]
[1741529319324,4.15482,2112.3,2112.1,40.8]
[1741529319516,0.94718,2111.9,2111.8,2.788]
[1741529319717,2.788,2112.8,2111.3,4.15523]
[1741529319718,3.2078,2112.0,2111.3,3.2078]
[1741529320022,0.94727,2111.7,2111.6,0.00710463]
[1741529320217,3.2078,2111.7,2111.6,0.00710463]
[1741529320624,0.94722,2111.9,2111.6,0.00710463]
[1741529320822,3.2078,2112.0,2111.6,0.00710463]
[1741529321020,0.94727,2111.7,2111.6,0.00710463]
[1741529321219,0.94725,2111.8,2111.6,0.00710463]
[1741529321423,0.94727,2111.7,2111.6,0.00710463]
[1741529321820,3.2078,2112.0,2111.6,0.95437463]
[1741529322128,0.94727,2111.7,2111.6,0.00710463]
[1741529323218,4.15507,2111.7,2111.6,0.00710463]
[1741529323426,7.2078,2111.7,2110.8,2.788]
[1741529323623,0.94761,2111.0,2110.8,2.788]
[1741529323826,3.2078,2111.1,2110.6,3.2078]
[1741529324150,3.2078,2111.1,2110.4,25.5303]
[1741529324324,0.94773,2110.7,2110.4,25.5303]
[1741529324519,6.40960463,2111.0,2110.5,0.0047364]
[1741529324727,7.35721463,2111.0,2110.6,0.94772]
[1741529324921,0.94764,2110.9,2110.5,0.0047364]
[1741529325123,0.94776,2110.6,2110.5,0.0047364]
[1741529325319,9.61740463,2111.0,2110.5,0.0047364]
[1741529325524,3.21490463,2111.0,2110.5,0.0047364]
[1741529325825,0.00710463,2111.0,2110.9,0.94763]
[1741529326332,0.00710463,2111.0,2110.8,3.2078]
[1741529326528,0.94763,2110.9,2110.6,7.8459]
[1741529326724,0.00710463,2111.0,2110.7,0.94771]
[1741529326922,0.00710463,2111.0,2110.5,0.9525264]
[1741529327231,0.94776,2110.6,2110.5,2.7927364]
[1741529327529,0.94775,2110.7,2110.5,0.0047364]
[1741529327731,3.21490463,2111.0,2110.5,0.0047364]
[1741529327934,3.21490463,2111.0,2110.6,0.94775]
[1741529327935,4.16251463,2111.0,2110.6,0.94775]
[1741529328132,0.00710463,2111.0,2110.9,0.94763]
[1741529328432,0.00710463,2111.0,2110.9,40.8]
[1741529328622,0.00710463,2111.0,2110.9,41.74763]
[1741529329229,0.00710463,2111.0,2110.9,40.8]
[1741529329431,0.95471463,2111.0,2110.7,2.788]
[1741529329626,0.95471463,2111.0,2110.7,3.73572]
[1741529329823,0.95471463,2111.0,2110.7,3.7357]
[1741529330029,0.95471463,2111.0,2110.7,2.788]
[1741529330334,0.95471463,2111.0,2110.7,3.73572]
[1741529330526,0.95471463,2111.0,2110.7,2.788]
[1741529330723,0.00710463,2111.0,2110.7,2.788]
[1741529331240,0.00710463,2111.0,2110.9,4.15543]
[1741529333237,3.2078,2111.4,2110.9,7.2078]
[1741529333436,4.15499,2111.9,2111.6,0.94729]
[1741529333636,3.2078,2111.9,2111.4,2.788]
[1741529334433,0.00710463,2111.9,2111.6,0.94728]
[1741529334837,0.00710463,2111.9,2111.4,2.79510463]
[1741529335037,0.94723,2111.8,2111.4,2.79510463]
[1741529335228,0.94723,2111.8,2111.4,3.74248463]
[1741529335426,0.00710463,2111.9,2111.5,0.94734]
[1741529335629,0.95431463,2111.9,2111.5,0.94734]
[1741529336233,0.94723,2111.8,2111.4,2.79510463]
[1741529336536,3.21490463,2111.9,2111.4,0.00710463]
[1741529336942,0.94736,2111.5,2111.4,0.00710463]
[1741529337126,7.98250463,2111.9,2111.4,0.00710463]
[1741529337530,3.21490463,2111.9,2111.4,0.00710463]
[1741529337740,0.94724,2111.8,2111.5,0.94734]
[1741529337928,3.21490463,2111.9,2111.4,0.00710463]
[1741529338130,4.16209463,2111.9,2111.6,0.94731]
[1741529338731,0.94723,2111.8,2111.5,0.94734]
[1741529338938,3.21490463,2111.9,2111.5,0.94734]
[1741529339236,3.21490463,2111.9,2111.6,0.9473]
[1741529339434,4.16209463,2111.9,2111.6,0.9473]
[1741529339633,3.21490463,2111.9,2111.4,0.00710463]
[1741529339835,0.94733,2111.6,2111.4,0.00710463]
[1741529340032,3.21490463,2111.9,2111.4,0.00710463]
[1741529340345,0.94733,2111.6,2111.4,0.00710463]
[1741529340644,3.21490463,2111.9,2111.4,0.95448463]
[1741529340935,3.21490463,2111.9,2111.4,0.00710463]
[1741529341742,0.00710463,2111.9,2111.4,0.00710463]
[1741529342339,0.00710463,2111.9,2111.6,0.94729]
[1741529342540,0.00710463,2111.9,2111.6,2.787]
[1741529342840,0.94736,2111.5,2111.4,0.00710463]
[1741529344141,3.2078,2111.6,2111.5,0.94736]
[1741529344343,0.94736,2111.5,2111.4,0.00710463]
[1741529344841,7.00566,2111.8,2111.4,0.00710463]
[1741529345045,3.21490463,2111.9,2111.6,3.2078]
[1741529345339,3.21490463,2111.9,2111.6,5.9938]
[1741529345340,0.00710463,2111.9,2111.6,5.9938]
[1741529345842,0.00710463,2111.9,2111.8,0.94722]
[1741529346142,0.00710463,2111.9,2111.6,5.9938]
[1741529346538,0.00710463,2111.9,2111.7,40.8]
[1741529346739,0.00710463,2111.9,2111.7,41.74724]
[1741529346937,0.95429463,2111.9,2111.7,40.8]
[1741529347143,0.94725,2111.8,2111.6,2.786]
[1741529347336,0.94727,2111.7,2111.6,2.786]
[1741529347949,0.94736,2111.5,2111.4,0.00710463]
[1741529348840,3.2078,2111.6,2111.4,0.00710463]
[1741529349047,0.94736,2111.5,2111.4,0.00710463]
[1741529349343,3.2078,2111.6,2111.4,0.00710463]
[1741529350240,3.2078,2111.6,2111.4,0.95448463]
[1741529350842,3.2078,2111.6,2111.4,0.00710463]
[1741529351052,3.2078,2111.6,2111.4,0.95450463]
[1741529351745,3.2078,2111.6,2111.4,0.00710463]
[1741529352439,0.94736,2111.5,2111.4,0.00710463]
[1741529353844,3.2078,2111.6,2111.4,0.00710463]
[1741529354047,4.15512,2111.6,2111.4,0.00710463]
[1741529354344,0.94726,2111.8,2111.4,0.95448463]
[1741529354547,3.2078,2111.7,2111.4,0.00710463]
[1741529354745,0.94736,2111.5,2111.4,0.00710463]
[1741529355848,3.2078,2111.7,2111.4,0.00710463]
[1741529356050,0.94736,2111.5,2111.4,0.00710463]
[1741529356250,3.2078,2111.7,2111.4,0.00710463]
[1741529356451,0.94736,2111.5,2111.4,0.00710463]
[1741529357052,0.94734,2111.6,2111.4,0.00710463]
[1741529357351,0.94736,2111.5,2111.4,0.00710463]
[1741529361152,3.2078,2111.7,2111.0,40.8]
[1741529361354,2.36808,2111.8,2110.8,2.785]
[1741529361355,3.2078,2111.4,2110.8,2.785]
[1741529361558,0.94757,2111.1,2110.8,2.785]
[1741529361854,0.94757,2111.1,2110.8,44.53264]
[1741529362059,0.94757,2111.1,2110.9,0.94763]
[1741529362256,0.94757,2111.1,2110.8,44.5373764]
[1741529362555,0.94757,2111.1,2110.8,44.5373864]
[1741529362857,0.94757,2111.1,2110.8,44.5373964]
[1741529363558,3.2078,2111.4,2110.8,44.5373964]
[1741529363559,3.2078,2111.4,2110.8,43.5897364]
[1741529363854,0.94763,2110.9,2110.8,0.0047364]
[1741529364954,5.2002,2111.0,2110.8,0.0047364]
[1741529365259,2.981,2111.4,2110.8,0.0047364]
[1741529365260,3.2078,2111.4,2110.8,0.0047364]
[1741529365455,6.4743,2111.5,2110.8,0.0047364]
[1741529365649,7.42167,2111.5,2111.2,0.94749]
[1741529366452,6.4743,2111.5,2111.1,0.94752]
[1741529366645,7.42169,2111.5,2111.0,0.94756]
[1741529366844,6.4743,2111.5,2111.1,0.94751]
[1741529367050,6.4743,2111.5,2111.1,3.2078]
[1741529367252,5.2002,2111.6,2111.1,5.9918]
[1741529367461,6.14753,2111.6,2111.2,0.94748]
[1741529367652,5.2002,2111.6,2111.1,5.9918]
[1741529368246,6.14754,2111.6,2111.2,0.94746]
[1741529368451,5.2002,2111.6,2111.2,0.94749]
[1741529368658,5.2002,2111.6,2111.1,5.9918]
[1741529368851,5.2002,2111.6,2111.2,0.94748]
[1741529369047,6.14754,2111.6,2111.2,0.94748]
[1741529369447,0.94742,2111.4,2111.1,5.9918]
[1741529369660,5.2002,2111.6,2111.1,3.2078]
[1741529369865,0.94755,2111.1,2110.8,0.0047364]
[1741529370162,0.94757,2111.1,2110.8,0.0047364]
[1741529370461,3.2078,2111.3,2110.8,0.0047364]
[1741529370657,4.15541,2111.0,2110.8,0.0047364]
[1741529370859,4.15539,2111.0,2110.8,0.0047364]
[1741529371161,0.94759,2111.0,2110.8,0.0047364]
[1741529371659,6.4906,2111.2,2110.8,0.0047364]
[1741529371861,0.94763,2110.9,2110.8,0.0047364]
[1741529372155,6.4906,2111.2,2110.8,0.0047364]
[1741529372563,0.9476,2111.0,2110.8,0.0047364]
[1741529372762,6.4906,2111.2,2110.8,0.0047364]
[1741529373457,0.94758,2111.1,2110.8,0.0047364]
[1741529374059,6.4906,2111.2,2110.8,0.0047364]
[1741529374260,0.94763,2110.9,2110.8,0.0047364]
[1741529375355,3.2078,2111.0,2110.8,0.9523964]
[1741529375649,6.4906,2111.2,2110.8,0.9523964]
[1741529375650,0.94756,2111.1,2110.8,0.9523964]
[1741529375852,0.94758,2111.0,2110.8,0.0047364]
[1741529376053,7.43813,2111.2,2110.8,0.9523864]
[1741529376356,0.94756,2111.1,2110.8,0.9523864]
[1741529376558,0.94756,2111.1,2110.8,0.0047364]
[1741529377654,0.94759,2111.0,2110.8,0.0047364]
[1741529378065,6.4906,2111.2,2110.8,0.0047364]
[1741529378258,0.94755,2111.1,2110.8,0.9523764]
[1741529378454,3.2078,2111.4,2110.8,0.0047364]
[1741529378651,0.94756,2111.1,2110.8,0.9523964]
[1741529379665,3.2078,2111.4,2110.8,3.2125364]
[1741529379958,0.94746,2111.3,2111.0,0.94756]
[1741529380164,3.2078,2111.4,2110.8,3.2125364]
[1741529380465,3.2078,2111.4,2111.2,0.94746]
[1741529380765,6.14753,2111.6,2111.3,0.94744]
[1741529380965,3.2078,2111.7,2111.1,5.57665]
[1741529381158,3.2078,2111.7,2111.6,0.94731]
[1741529381362,16.28965981,2111.8,2111.5,0.94735]
[1741529381557,16.28965981,2111.8,2111.4,5.9898]
[1741529381760,16.28965981,2111.8,2111.7,0.94727]
[1741529382259,16.28965981,2111.8,2111.7,3.2078]
[1741529382463,16.28965981,2111.8,2111.7,4.15507]
[1741529383063,16.28965981,2111.8,2111.7,3.2078]
[1741529383564,16.28965981,2111.8,2111.6,0.9473]
[1741529383764,0.00710463,2111.9,2111.6,0.94729]
[1741529384171,0.00710463,2111.9,2111.6,41.74729]
[1741529384361,0.95430463,2111.9,2111.6,40.8]
[1741529384559,0.00710463,2111.9,2111.5,6.3663]
[1741529384758,0.00710463,2111.9,2111.6,0.9473]
[1741529385655,0.00710463,2111.9,2111.6,0.94728]
[1741529385962,0.00710463,2111.9,2111.5,6.3663]
[1741529386156,0.95430463,2111.9,2111.5,7.31363]
[1741529386357,0.00710463,2111.9,2111.5,6.3663]
[1741529386562,0.00710463,2111.9,2111.7,0.94725]
[1741529386764,0.00710463,2111.9,2111.8,3.72822]
[1741529386964,3.2078,2112.5,2111.9,2.36789]